Cogmind - Beta 13 @@@ ROGUE MODE // 2024.06.04 @ 03:57:55 Player: MarKhan Result: Destroyed by P-80 Master with Gamma Rifle Performance ------------- Evolutions (9) 4500 Regions Visited (15) 3000 Robots Destroyed (78) 390 Value Destroyed (1777) 1777 Prototype IDs (17) 340 Alien Tech Used (0) 0 Bonus (512) 512 TOTAL SCORE: 10519 Bonus ------- High Alert Combat Kills 12 Entered DSFs 500 Cogmind --------- Core Integrity 0/1600 Matter 54/300 Energy 49/100 System Corruption 6% Temperature Cool (9) Movement Core (50) Location -1/Access Parts ------- > --- POWER (5) -------- (None) > --- PROPULSION (8) --- Gyrokinetic Inverter Gyrokinetic Inverter > --- UTILITY (9) ------ Advanced Coolant Injector Advanced Terrain Scan Processor Advanced Terrain Scan Processor Advanced Terrain Scan Processor > --- WEAPON (3) ------- (None) > --- INVENTORY (5) ---- Gyrokinetic Inverter Gyrokinetic Inverter Enhanced Quantum Rifle Enhanced Quantum Rifle Fusion Bomb Launcher Peak State ------------ > --- POWER ------------ Micro Antimatter Reactor Quantum Reactor > --- PROPULSION ------- Cooled Nuclear Pulse Thruster Diametric Drive Impulse Thruster Array Impulse Thruster Array Impulse Thruster Array > --- UTILITY ---------- Advanced Coolant Injector Advanced Weight Redist. System Advanced Terrain Scan Processor Advanced Terrain Scan Processor Improved Melee Analysis Suite Improved Phase Shifter Advanced Phase Shifter Advanced System Restoration Module Improved Field Recycling Unit > --- WEAPON ----------- Enhanced Quantum Rifle Enhanced Force Lance > --- INVENTORY -------- Impulse Thruster Array Enhanced Quantum Rifle Fusion Bomb Launcher [Rating: 148] Favorites ----------- Power Improved Ion Engine Engine Improved Ion Engine Power Core Neutrino Core Reactor Micro Antimatter Reactor Propulsion Light Treads Treads Light Treads Leg Aluminum Leg Wheel Wheel Hover Unit Improved Linear Gravjet Flight Unit Cesium-ion Thruster Utility Huge Storage Unit Device Seismic Detector Storage Huge Storage Unit Processor Advanced Terrain Scan Processor Hackware Improved System Shield Protection Hardened Light Armor Plating Weapon Advanced Beam Cannon Energy Gun Heavy EM Pulse Gun Energy Cannon Advanced Beam Cannon Ballistic Gun Assault Rifle Launcher Mini Grenade Launcher Impact Weapon Heavy Flail Piercing Weapon Enhanced Force Lance Build | -11 -10 -9 -8 -7 -7 -6 -5 -5 -5 -4 -4 -4 -3 -2 -1 ------- Run | Yrd Mat Mat Mat Fac DSF Fac Fac Upp Upp Fac Upp Upp Res Res Acc Slots Evolved 18 | . . 2 2 2 . 2 2 . . 2 . . 2 2 2 Power 4 | . . . . 1 . . . . . . . . 1 1 1 Propulsion 6 | . . 2 . 1 . 1 2 . . . . . . . . Utility 7 | . . . 2 . . 1 . . . 2 . . 1 1 . Weapon 1 | . . . . . . . . . . . . . . . 1 Parts Attached 173 | 8 15 31 10 1 14 19 15 . . 7 4 . 8 7 34 Power 26 | 1 3 4 1 1 2 2 3 . . 3 1 . . 2 3 Engine 14 | 1 3 4 . 1 2 2 1 . . . . . . . . Core 8 | . . . 1 . . . 2 . . 3 1 . . 1 . Reactor 4 | . . . . . . . . . . . . . . 1 3 Propulsion 62 | 2 2 16 1 . 8 7 8 . . . 2 . 5 1 10 Treads 10 | . . 9 1 . . . . . . . . . . . . Leg 2 | . . 2 . . . . . . . . . . . . . Wheel 9 | 2 2 5 . . . . . . . . . . . . . Hover 4 | . . . . . . . . . . . 1 . 1 . 2 Flight 37 | . . . . . 8 7 8 . . . 1 . 4 1 8 Utility 58 | 3 5 3 2 . 2 10 4 . . 4 1 . 3 4 17 Device 32 | 2 3 2 1 . . 4 4 . . 2 . . 2 . 12 Storage 5 | 1 2 1 . . . . . . . 1 . . . . . Processor 6 | . . . . . . . . . . . . . 1 1 4 Hackware 6 | . . . . . 2 2 . . . 1 . . . 1 . Protection 9 | . . . 1 . . 4 . . . . 1 . . 2 1 Artifact . | . . . . . . . . . . . . . . . . Weapon 27 | 2 5 8 6 . 2 . . . . . . . . . 4 Energy Gun 7 | 1 4 . . . . . . . . . . . . . 2 Energy Cannon 7 | . . 4 3 . . . . . . . . . . . . Ballistic Gun 1 | 1 . . . . . . . . . . . . . . . Ballistic Cannon . | . . . . . . . . . . . . . . . . Launcher 7 | . 1 4 2 . . . . . . . . . . . . Special Weapon . | . . . . . . . . . . . . . . . . Impact Weapon 3 | . . . 1 . 2 . . . . . . . . . . Slashing Weapon . | . . . . . . . . . . . . . . . . Piercing Weapon 2 | . . . . . . . . . . . . . . . 2 Special Melee Weapon . | . . . . . . . . . . . . . . . . Unidentified Prototypes 3 | . . . . . . . . . . . . . 1 . 2 Corrupted Parts 1 | . . 1 . . . . . . . . . . . . . System Corruption 1 | . . 1 . . . . . . . . . . . . . Parts Lost 72 | . 3 8 . . 4 . 2 . . 5 13 . 6 . 31 Power 8 | . . 1 . . 1 . . . . . 2 . . . 4 Propulsion 32 | . 1 6 . . 2 . 2 . . 3 6 . 2 . 10 Utility 26 | . . 1 . . 1 . . . . 2 3 . 4 . 15 Weapon 6 | . 2 . . . . . . . . . 2 . . . 2 Highest Loss Streak 15 | . 1 5 . . 3 . 2 . . 5 13 . 5 . 15 To Critical Strikes 5 | . . 1 . . . . . . . . 2 . . . 2 Average Slot Usage (%) 84 | . 98 88 100 92 69 88 99 100 100 92 47 21 16 32 55 Engine 7 | . 14 10 6 7 10 7 7 . . . . . . . . Core 1 | . . . 2 7 1 . 3 11 11 10 5 . . 4 1 Treads 11 | . . 22 36 30 15 . . . . . . . . . . Wheel 8 | . 27 11 . . . . . . . . . . . . . Flight 10 | . . . . . 13 34 46 47 47 36 10 . . 19 19 Device 12 | . 14 9 18 15 9 11 14 17 17 15 9 . 3 . 10 Storage 7 | . 14 10 9 7 3 . . . . 2 2 . . . . Hackware 3 | . . . . . . 20 13 11 11 15 12 10 7 4 5 Protection 1 | . . . 9 7 4 1 . . . . . 5 1 1 1 Energy Gun 6 | . 26 2 . . . . . . . . . . . . 3 Energy Cannon 6 | . . 13 16 15 7 . . . . . . . . . . Launcher 1 | . . 6 . . . . . . . . . . . . . Impact Weapon 2 | . . . . . 3 13 11 11 11 10 5 . . . . Naked Turns . | . . . . . . . . . . . . . . . . Heaviest Build 115 | 13 92 96 102 109 115 31 33 31 31 44 38 7 8 43 62 Greatest Support 86 | 26 26 86 86 86 86 35 47 47 47 56 40 10 28 44 72 Greatest Overweight (x) 29 | . 3 29 1 1 5 . . . . . 1 . 2 . 1 Average Overweight (x) . | . 1 2 1 1 . . . . . . . . . . . Largest Inventory Capacity 25 | 8 25 25 25 25 25 5 5 5 5 10 10 5 5 5 5 Average Capacity 16 | 7 18 24 25 25 13 5 5 5 5 7 7 5 5 5 5 Most Carried 25 | 8 25 25 25 24 25 5 5 5 5 10 10 5 5 4 5 Average Carried 15 | 6 16 24 24 24 13 4 4 3 5 5 7 5 4 3 4 Final Capacity 25 | 8 25 25 25 25 5 5 5 5 5 10 5 5 5 5 5 Final Carried 25 | 8 24 25 25 24 5 5 3 5 5 10 5 5 5 3 5 Class Distribution -------------------- 42% | Mutant 24% | Hacker-Sprinter 23% | Scavenger-Mutant 4% | Hacker-Mutant 4% | Sprinter Dominant Class ---------------- Mutant | -10/Materials Mutant | -9/Materials Scavenger-Mutant | -8/Materials Scavenger-Mutant | -7/Factory Mutant | -7/DSF Hacker-Sprinter | -6/Factory Hacker-Sprinter | -5/Factory Hacker-Sprinter | -5/Upper Caves Hacker-Sprinter | -5/Upper Caves Hacker-Sprinter | -4/Factory Hacker-Mutant | -4/Upper Caves Hacker-Mutant | -4/Upper Caves Hacker-Mutant | -3/Research Hacker-Mutant | -2/Research Hacker-Sprinter | -1/Access Resources | -11 -10 -9 -8 -7 -7 -6 -5 -5 -5 -4 -4 -4 -3 -2 -1 ----------- Run | Yrd Mat Mat Mat Fac DSF Fac Fac Upp Upp Fac Upp Upp Res Res Acc Matter Collected 2633 | 298 460 918 252 . 111 267 . 48 9 198 61 . . . 11 Remotely . | . . . . . . . . . . . . . . . . Salvage Created 1787 | 125 685 617 144 . . 137 . . . 38 41 . . . . Parts 149 | 9 55 73 8 . . 2 . . . . 2 . . . . Haulers Intercepted 1 | . . . 1 . . . . . . . . . . . . Recyclers Shooed 1 | . . 1 . . . . . . . . . . . . . Parts Field Recycled 4 | . . . . . . . . . . . . . . . 4 Retrieved Matter 56 | . . . . . . . . . . . . . . . 56 Parts Self-Destructed 2 | . . . . . . . . . . . 2 . . . . Prevented 1 | . . . . . . . . . . . 1 . . . . Kills | -11 -10 -9 -8 -7 -7 -6 -5 -5 -5 -4 -4 -4 -3 -2 -1 ------- Run | Yrd Mat Mat Mat Fac DSF Fac Fac Upp Upp Fac Upp Upp Res Res Acc Combat Hostiles Destroyed 52 | . 18 21 6 . . 3 . . . 2 2 . . . . Melee 3 | . . . . . . 1 . . . . 2 . . . . Guns 16 | . 14 2 . . . . . . . . . . . . . Cannons 7 | . . 4 3 . . . . . . . . . . . . AOE 22 | . 4 15 3 . . . . . . . . . . . . Classes Destroyed 10 | 2 6 1 1 . . . . . . . . . . . . Worker 4 | . 1 2 1 . . . . . . . . . . . . Builder 4 | . 1 3 . . . . . . . . . . . . . Tunneler 4 | 2 1 1 . . . . . . . . . . . . . Hauler 1 | . . . 1 . . . . . . . . . . . . Recycler 2 | 1 1 . . . . . . . . . . . . . . Operator 3 | . 2 . . . . 1 . . . . . . . . . Watcher 8 | . 3 5 . . . . . . . . . . . . . Swarmer 24 | . 8 7 3 . . 2 . . . 2 2 . . . . Grunt 22 | . 10 9 3 . . . . . . . . . . . . Sentry 6 | . . 5 . . . 1 . . . . . . . . . Best Kill Streak 11 | 2 5 11 5 . . 3 . . . 2 2 . . . . Combat Bots Only 4 | . 3 4 3 . . 3 . . . 2 2 . . . . Max Kills in Single Turn 5 | 1 2 5 2 . . 1 . . . 1 1 . . . . Gunslinging . | . . . . . . . . . . . . . . . . Exploded 4 | . 1 4 2 . . . . . . . . . . . . Melee 1 | . . . . . . 1 . . . . 1 . . . . Uniques/NPCs Destroyed . | . . . . . . . . . . . . . . . . Combat | -11 -10 -9 -8 -7 -7 -6 -5 -5 -5 -4 -4 -4 -3 -2 -1 -------- Run | Yrd Mat Mat Mat Fac DSF Fac Fac Upp Upp Fac Upp Upp Res Res Acc Hostile Shots Fired 1035 | . 44 83 76 . 66 33 2 . . 53 108 . 135 . 435 Missed 486 | . 15 25 22 . 24 19 1 . . 31 52 . 62 . 235 Damage Taken 10322 | . 340 788 919 . 777 136 110 . . 350 899 . 1453 . 4550 Core 4048 | . 65 261 156 . 273 32 . . . 30 402 . 1214 . 1615 Absorbed by Shields 61 | . . . . . . . . . . . . . . . 61 Ignored by Resistances 37 | . . . . . . . . . . . . . . . 37 Regen/Repaired (Parts) 80 | . . 80 . . . . . . . . . . . . . Core Remaining (%) 70 | 100 74 34 71 . 61 96 . . 100 . . 62 6 100 . Volleys Fired 100 | 6 43 34 17 . . . . . . . . . . . . Largest 2 | 2 2 2 2 . . . . . . . . . . . . Hottest 136 | 70 90 136 136 . . . . . . . . . . . . Shots Fired 199 | 12 83 70 34 . . . . . . . . . . . . Gun 109 | 12 79 18 . . . . . . . . . . . . . Cannon 50 | . . 24 26 . . . . . . . . . . . . Launcher 40 | . 4 28 8 . . . . . . . . . . . . Special . | . . . . . . . . . . . . . . . . Kinetic 6 | 6 . . . . . . . . . . . . . . . Thermal 67 | 6 4 31 26 . . . . . . . . . . . . Explosive 40 | . 4 28 8 . . . . . . . . . . . . Electromagnetic 86 | . 75 11 . . . . . . . . . . . . . Robot Hit Streak 9 | 2 6 9 8 . . . . . . . . . . . . Robot Miss Streak 4 | 3 4 4 3 . . . . . . . . . . . . Penetration Max . | . . . . . . . . . . . . . . . . Secondary Targets 1 | . 1 . . . . . . . . . . . . . . Max Gunslinging Chain 1 | . 1 . . . . . . . . . . . . . . Shots Hit Robots 104 | 6 31 33 18 . . 8 . . . 6 2 . . . . Core Hits 92 | 4 28 42 15 . . 2 . . . . 1 . . . . Critical Kills . | . . . . . . . . . . . . . . . . Critical Parts Destroyed 5 | . . . . . . 2 . . . 2 1 . . . . Critical Strikes 5 | . . . . . . 2 . . . 2 1 . . . . Smash 5 | . . . . . . 2 . . . 2 1 . . . . Melee Attacks 71 | . . . 1 . 4 9 27 . . 22 5 . . . 3 Impact 68 | . . . 1 . 4 9 27 . . 22 5 . . . . Slashing . | . . . . . . . . . . . . . . . . Piercing 3 | . . . . . . . . . . . . . . . 3 Sneak Attacks . | . . . . . . . . . . . . . . . . Combat Hostiles . | . . . . . . . . . . . . . . . . Follow-up Attacks 6 | . . . . . . 2 . . . 3 1 . . . . Damage Inflicted 4336 | 74 887 1683 932 . . 382 . . . 267 111 . . . . Guns 771 | 74 535 162 . . . . . . . . . . . . . Cannons 556 | . . 286 270 . . . . . . . . . . . . Explosions 2180 | . 303 1231 646 . . . . . . . . . . . . Melee 760 | . . . . . . 382 . . . 267 111 . . . . Ramming 69 | . 49 4 16 . . . . . . . . . . . . Kinetic 49 | 49 . . . . . . . . . . . . . . . Thermal 715 | 25 81 339 270 . . . . . . . . . . . . Explosive 2108 | . 231 1231 646 . . . . . . . . . . . . Electromagnetic 635 | . 526 109 . . . . . . . . . . . . . Impact 760 | . . . . . . 382 . . . 267 111 . . . . Slashing . | . . . . . . . . . . . . . . . . Piercing . | . . . . . . . . . . . . . . . . Highest Corruption 6 | . 6 1 1 . . . . . . . . . . . 6 Average Corruption 1 | . 2 1 1 . . . . . . . . . . . 3 Corruption Purged 7 | . . . . . . . . . . . . . . . 7 Corruption Blocked . | . . . . . . . . . . . . . . . . Effects 27 | . 10 14 . . . . . . . . . . . . 3 Message Errors 6 | . 3 3 . . . . . . . . . . . . . Matter Fused 5 | . 1 3 . . . . . . . . . . . . 1 Heat Flow Errors 3 | . 2 1 . . . . . . . . . . . . . Energy Discharges 1 | . . 1 . . . . . . . . . . . . . Parts Fused 2 | . . 2 . . . . . . . . . . . . . Data Loss (minor) 5 | . 3 . . . . . . . . . . . . . 2 Data Loss (major) 2 | . . 2 . . . . . . . . . . . . . Misfires 3 | . 1 2 . . . . . . . . . . . . . Overload Shots . | . . . . . . . . . . . . . . . . Overflow Damage 461 | . 1 94 44 . . 148 . . . 116 58 . . . . Projectiles 2 | . . . 2 . . . . . . . . . . . . Explosions 137 | . 1 94 42 . . . . . . . . . . . . Melee 322 | . . . . . . 148 . . . 116 58 . . . . Knockbacks 2 | . . . . . . 1 . . . 1 . . . . . Impact 2 | . . . . . . 1 . . . 1 . . . . . Kinetic . | . . . . . . . . . . . . . . . . Secondary . | . . . . . . . . . . . . . . . . Self-Inflicted Damage 233 | . 64 122 47 . . . . . . . . . . . . Shots 7 | . 2 4 1 . . . . . . . . . . . . Rammed 7 | . 4 1 2 . . . . . . . . . . . . Targets Rammed 7 | . 4 1 2 . . . . . . . . . . . . Kicked . | . . . . . . . . . . . . . . . . Crushed . | . . . . . . . . . . . . . . . . Highest Temperature 297 | 27 246 297 219 . . 261 292 90 24 6 20 . . 3 206 Average Temperature 50 | 11 50 66 65 . . 80 62 34 12 3 20 . . 1 40 Received Heat Transfer 1513 | . 48 198 531 . 99 42 9 . . 9 46 . 351 . 180 Effects 2 | . . . . . . . 2 . . . . . . . . Energy Bleed 2 | . . . . . . . 2 . . . . . . . . Siege Activations . | . . . . . . . . . . . . . . . . Robots Corrupted . | . . . . . . . . . . . . . . . . Combat Hostiles . | . . . . . . . . . . . . . . . . Parts Fried 5 | . 1 . . . . 3 . . . 1 . . . . . Impact Corruptions 13 | . . . . . . 7 . . . 5 1 . . . . Robots Melted . | . . . . . . . . . . . . . . . . Combat Hostiles . | . . . . . . . . . . . . . . . . Parts Melted 1 | . . 1 . . . . . . . . . . . . . Heat Transferred 1373 | 74 87 740 472 . . . . . . . . . . . . Parts Sabotaged . | . . . . . . . . . . . . . . . . Parts Stolen . | . . . . . . . . . . . . . . . . Parts Stripped . | . . . . . . . . . . . . . . . . Power Chain Reactions 2 | . 2 . . . . . . . . . . . . . . Alert | -11 -10 -9 -8 -7 -7 -6 -5 -5 -5 -4 -4 -4 -3 -2 -1 ------- Run | Yrd Mat Mat Mat Fac DSF Fac Fac Upp Upp Fac Upp Upp Res Res Acc Peak Influence 963 | 15 225 571 304 70 49 199 311 . . 251 . . 503 284 963 Initial 249 | . 9 34 43 70 49 4 97 . . 63 . . 128 249 170 Average 176 | 7 100 154 103 70 36 86 167 . . 147 . . 256 262 518 Maximum Alert Level 3 | . 1 2 1 . . . 1 . . 1 . . 2 1 3 Low Security (%) 71 | 100 86 73 83 100 100 100 76 . . 76 . . 38 . 14 Level 1 17 | . 13 20 16 . . . 23 . . 23 . . 44 100 10 Level 2 9 | . . 6 . . . . . . . . . . 17 . 59 Level 3 1 | . . . . . . . . . . . . . . . 16 Level 4 . | . . . . . . . . . . . . . . . . Level 5 . | . . . . . . . . . . . . . . . . High Security . | . . . . . . . . . . . . . . . . Max Security . | . . . . . . . . . . . . . . . . Squads Dispatched 29 | . 5 3 2 . 1 1 3 . . . . . 5 1 8 Investigation 14 | . 3 2 . . . . 2 . . . . . 2 . 5 Extermination 4 | . . . . . . . 1 . . . . . 1 . 2 Reinforcement 10 | . 2 1 1 . 1 1 . . . . . . 2 1 1 Assault 1 | . . . 1 . . . . . . . . . . . . Garrison . | . . . . . . . . . . . . . . . . Intercept . | . . . . . . . . . . . . . . . . Searches Triggered 3 | . . . . . . . . . . . . . 1 . 2 Construction Impeded . | . . . . . . . . . . . . . . . . Haulers Reinforced . | . . . . . . . . . . . . . . . . Active Scanning Responses . | . . . . . . . . . . . . . . . . Cargo Convoy Interrupts . | . . . . . . . . . . . . . . . . Stealth | -11 -10 -9 -8 -7 -7 -6 -5 -5 -5 -4 -4 -4 -3 -2 -1 --------- Run | Yrd Mat Mat Mat Fac DSF Fac Fac Upp Upp Fac Upp Upp Res Res Acc Distress Signals 5 | . . . . . . . 1 . . . . . 2 . 2 Communications Jammed . | . . . . . . . . . . . . . . . . Distress Signals . | . . . . . . . . . . . . . . . . Times Spotted 280 | . 24 27 16 . 7 10 9 . . 15 16 . 38 1 117 Peak Tracking Total 26 | . 4 5 5 . 6 5 6 . . 9 10 . 18 1 26 Tactical Retreats 42 | . 1 . . . . 1 3 . . 4 4 . 8 . 21 Traps | -11 -10 -9 -8 -7 -7 -6 -5 -5 -5 -4 -4 -4 -3 -2 -1 ------- Run | Yrd Mat Mat Mat Fac DSF Fac Fac Upp Upp Fac Upp Upp Res Res Acc Traps Triggered 15 | . 3 . 1 . . 1 2 . . 1 . . 1 1 5 Indirectly . | . . . . . . . . . . . . . . . . Trap Hack Attempts . | . . . . . . . . . . . . . . . . Triggered . | . . . . . . . . . . . . . . . . Disarmed . | . . . . . . . . . . . . . . . . Reprogrammed . | . . . . . . . . . . . . . . . . Reused . | . . . . . . . . . . . . . . . . Traps Extracted . | . . . . . . . . . . . . . . . . Installed . | . . . . . . . . . . . . . . . . Triggered . | . . . . . . . . . . . . . . . . Machines | -11 -10 -9 -8 -7 -7 -6 -5 -5 -5 -4 -4 -4 -3 -2 -1 ---------- Run | Yrd Mat Mat Mat Fac DSF Fac Fac Upp Upp Fac Upp Upp Res Res Acc Machines Disabled 9 | . 2 3 4 . . . . . . . . . . . . Max in Single Turn 2 | . 1 1 2 . . . . . . . . . . . . Garrison Access 4 | . . . 1 . . 1 1 . . 1 . . . . . Machines Repaired . | . . . . . . . . . . . . . . . . Machines Dismantled . | . . . . . . . . . . . . . . . . Machines Sabotaged . | . . . . . . . . . . . . . . . . Overloaded Fab Kills . | . . . . . . . . . . . . . . . . Hacking | -11 -10 -9 -8 -7 -7 -6 -5 -5 -5 -4 -4 -4 -3 -2 -1 --------- Run | Yrd Mat Mat Mat Fac DSF Fac Fac Upp Upp Fac Upp Upp Res Res Acc Machines Accessed 63 | . 9 13 1 1 . 9 12 . . 4 . . 4 1 9 Terminals 47 | . 6 10 . 1 . 7 8 . . 3 . . 3 1 8 Fabricators 3 | . . . . . . 1 2 . . . . . . . . Repair Stations 2 | . 1 1 . . . . . . . . . . . . . Recycling Units 3 | . 2 1 . . . . . . . . . . . . . Scanalyzers 3 | . . 1 1 . . . 1 . . . . . . . . Garrison Access 5 | . . . . . . 1 1 . . 1 . . 1 . 1 Total Hacks 217 | . 35 52 2 2 . 28 50 . . 14 . . 10 2 22 Successful 127 | . 23 41 2 1 . 11 31 . . 9 . . 3 1 5 Failed 87 | . 11 10 . 1 . 17 19 . . 5 . . 6 1 17 Catastrophic 16 | . 2 . . . . 1 2 . . 1 . . 3 1 6 Database Lockouts 3 | . 1 1 . . . . . . . . . . 1 . . Manual 84 | . 13 23 . . . 15 17 . . 6 . . 3 2 5 Terminals 171 | . 25 44 . 2 . 25 34 . . 11 . . 7 2 21 Fabricators 9 | . . . . . . 2 7 . . . . . . . . Repair Stations 7 | . 3 4 . . . . . . . . . . . . . Recycling Units 8 | . 7 1 . . . . . . . . . . . . . Scanalyzers 10 | . . 3 2 . . . 5 . . . . . . . . Garrison Access 12 | . . . . . . 1 4 . . 3 . . 3 . 1 Terminal Hacks 71 | . 9 24 . 1 . 6 18 . . 6 . . 3 . 4 Record 17 | . . . . . . 1 11 . . . . . 2 . 3 Prototype ID Bank 9 | . 3 5 . . . . . . . 1 . . . . . Open DSF 6 | . . . . 1 . 1 2 . . 1 . . 1 . . Level Access Points 1 | . . . . . . . . . . 1 . . . . . Branch Access Points 3 | . . 1 . . . . 1 . . . . . . . 1 Emergency Access Points 6 | . . 5 . . . . 1 . . . . . . . . Terminal Index 4 | . . 2 . . . 1 1 . . . . . . . . Recycling Unit Index 1 | . . 1 . . . . . . . . . . . . . Alert Level 9 | . 2 4 . . . 2 . . . 1 . . . . . Unreport Threat 3 | . 1 2 . . . . . . . . . . . . . Locate Traps 3 | . . 1 . . . 1 1 . . . . . . . . Hauler Manifests 2 | . 1 1 . . . . . . . . . . . . . Zone Layout 7 | . 2 2 . . . . 1 . . 2 . . . . . Fabricator Hacks 7 | . . . . . . 1 6 . . . . . . . . Network Status 3 | . . . . . . 1 2 . . . . . . . . Load Schematic 2 | . . . . . . . 2 . . . . . . . . Build 2 | . . . . . . . 2 . . . . . . . . Repair Station Hacks 6 | . 2 4 . . . . . . . . . . . . . Scan Component 3 | . 1 2 . . . . . . . . . . . . . Repair 2 | . . 2 . . . . . . . . . . . . . Refit 1 | . 1 . . . . . . . . . . . . . . Recycling Unit Hacks 6 | . 6 . . . . . . . . . . . . . . Process 2 | . 2 . . . . . . . . . . . . . . Report Inventory 2 | . 2 . . . . . . . . . . . . . . Retrieve Matter 2 | . 2 . . . . . . . . . . . . . . Scanalyzer 9 | . . 3 2 . . . 4 . . . . . . . . Insert Component 5 | . . 2 1 . . . 2 . . . . . . . . Analyze 4 | . . 1 1 . . . 2 . . . . . . . . Garrison Access Hacks 4 | . . . . . . 1 1 . . 1 . . . . 1 Unlock Access 1 | . . . . . . . . . . . . . . . 1 Seal Access 3 | . . . . . . 1 1 . . 1 . . . . . Unauthorized Hacks 24 | . 6 10 . . . 3 2 . . 2 . . . 1 . Terminals 22 | . 5 9 . . . 3 2 . . 2 . . . 1 . Assimilate 1 | . . 1 . . . . . . . . . . . . . Botnet 21 | . 5 8 . . . 3 2 . . 2 . . . 1 . Fabricators . | . . . . . . . . . . . . . . . . Repair Stations . | . . . . . . . . . . . . . . . . Recycling Units 2 | . 1 1 . . . . . . . . . . . . . Monitor 2 | . 1 1 . . . . . . . . . . . . . Scanalyzers . | . . . . . . . . . . . . . . . . Garrison Access . | . . . . . . . . . . . . . . . . Data Cores Recovered 1 | . . . . . . 1 . . . . . . . . . Used 1 | . . . . . . 1 . . . . . . . . . Hacking Detections 48 | . 7 11 1 1 . 5 9 . . 2 . . 3 1 8 Full Trace Events 16 | . 6 2 . . . . 2 . . . . . 2 . 4 Feedback Events . | . . . . . . . . . . . . . . . . Feedback Blocked . | . . . . . . . . . . . . . . . . Robot Schematics Acquired . | . . . . . . . . . . . . . . . . Robots Built . | . . . . . . . . . . . . . . . . Authchips . | . . . . . . . . . . . . . . . . Time . | . . . . . . . . . . . . . . . . Total Robot Build Rating . | . . . . . . . . . . . . . . . . Part Schematics Acquired 2 | . . . . . . . 2 . . . . . . . . Parts Built 4 | . . . . . . . 4 . . . . . . . . Authchips . | . . . . . . . . . . . . . . . . Time 146 | . . . . . . . 146 . . . . . . . . Total Part Build Rating 12 | . . . . . . . 12 . . . . . . . . Parts Repaired 2 | . . 2 . . . . . . . . . . . . . Time 64 | . . 64 . . . . . . . . . . . . . Parts Recycled . | . . . . . . . . . . . . . . . . Recycled Matter 118 | . 118 . . . . . . . . . . . . . . Retrieved Matter 118 | . 118 . . . . . . . . . . . . . . Retrieved Components . | . . . . . . . . . . . . . . . . Parts Scanalyzed 4 | . . 1 1 . . . 2 . . . . . . . . Part Schematics Acquired 2 | . . . . . . . 2 . . . . . . . . Parts Damaged 1 | . . . . . . . 1 . . . . . . . . Bothacking | -11 -10 -9 -8 -7 -7 -6 -5 -5 -5 -4 -4 -4 -3 -2 -1 ------------ Run | Yrd Mat Mat Mat Fac DSF Fac Fac Upp Upp Fac Upp Upp Res Res Acc Used RIF Installer . | . . . . . . . . . . . . . . . . Robots Hacked . | . . . . . . . . . . . . . . . . Non-combat . | . . . . . . . . . . . . . . . . Combat . | . . . . . . . . . . . . . . . . Robot Hacks Applied . | . . . . . . . . . . . . . . . . Relay Couplers Released 2 | . . . 2 . . . . . . . . . . . . Machine Destruction 2 | . . . 2 . . . . . . . . . . . . Fabnet Peak Effective % . | . . . . . . . . . . . . . . . . Robots Rewired . | . . . . . . . . . . . . . . . . Allies Hacked . | . . . . . . . . . . . . . . . . Hacks Repelled . | . . . . . . . . . . . . . . . . Allies | -11 -10 -9 -8 -7 -7 -6 -5 -5 -5 -4 -4 -4 -3 -2 -1 -------- Run | Yrd Mat Mat Mat Fac DSF Fac Fac Upp Upp Fac Upp Upp Res Res Acc Total Allies . | . . . . . . . . . . . . . . . . Largest Group . | . . . . . . . . . . . . . . . . Highest-Rated Group . | . . . . . . . . . . . . . . . . Highest-Rated Ally . | . . . . . . . . . . . . . . . . Total Orders . | . . . . . . . . . . . . . . . . Ally Attacks . | . . . . . . . . . . . . . . . . Total Damage . | . . . . . . . . . . . . . . . . Kills . | . . . . . . . . . . . . . . . . Allies Corrupted . | . . . . . . . . . . . . . . . . Allies Melted . | . . . . . . . . . . . . . . . . Intel | -11 -10 -9 -8 -7 -7 -6 -5 -5 -5 -4 -4 -4 -3 -2 -1 ------- Run | Yrd Mat Mat Mat Fac DSF Fac Fac Upp Upp Fac Upp Upp Res Res Acc Robot Analysis Total . | . . . . . . . . . . . . . . . . Derelict Logs Recovered 2 | . . . . . . . . 1 . . 1 . . . . Drone Launches . | . . . . . . . . . . . . . . . . Drone Recoveries . | . . . . . . . . . . . . . . . . Exploration | -11 -10 -9 -8 -7 -7 -6 -5 -5 -5 -4 -4 -4 -3 -2 -1 ------------- Run | Yrd Mat Mat Mat Fac DSF Fac Fac Upp Upp Fac Upp Upp Res Res Acc Turns Passed 7141 | 112 1437 1966 936 9 144 272 532 98 107 197 167 15 331 51 767 Spaces Moved 8948 | 72 929 811 327 4 110 732 1589 462 97 574 386 36 569 130 2120 Core 532 | 5 . 16 . . . . . . . . 97 . 379 . 35 Treads 703 | . . 347 327 4 25 . . . . . . . . . . Legs 9 | . . 9 . . . . . . . . . . . . . Wheels 1435 | 67 929 439 . . . . . . . . . . . . . Hover 311 | . . . . . . . . . . . 69 36 181 . 25 Flight 5958 | . . . . . 85 732 1589 462 97 574 220 . 9 130 2060 Fastest Speed 16 | 50 90 80 240 242 25 22 16 18 18 18 29 40 28 27 21 Average Speed 60 | 87 118 195 240 242 92 24 17 18 18 20 37 40 49 27 28 Slowest Speed 1500 | 100 135 1500 242 242 480 27 26 18 18 29 125 40 150 28 101 Overloaded Moves 13 | . . . . . . . . . . . . . . . 13 Propulsion Burnouts . | . . . . . . . . . . . . . . . . Robots Hopped 52 | . . . . . . 11 5 . . 5 . . . . 31 Cave-ins Triggered . | . . . . . . . . . . . . . . . . Exploration Rate (%) 37 | 4 94 70 27 . 69 20 42 59 12 18 53 8 19 3 60 Regions Visited 15 Branch Regions 4 Pre-discovered Areas . | . . . . . . . . . . . . . . . . Known Exits Taken 4 | . . . . 1 . . 1 1 . . . 1 . . . Unknown Exits Taken 10 | 1 1 1 1 . . 1 . . 1 1 1 . 1 1 . Scrap Searched 4 | . . . . . . . . 3 . . 1 . . . . Spaces Dug 31 | . . . 1 . . 1 19 . . 8 . . . . 2 Terrain Destroyed 343 | . 32 212 69 . . 1 19 . . 8 . . . . 2 Melee 31 | . . . 1 . . 1 19 . . 8 . . . . 2 Projectile . | . . . . . . . . . . . . . . . . AOE 312 | . 32 212 68 . . . . . . . . . . . . Terrain Rammed . | . . . . . . . . . . . . . . . . Walls Destroyed . | . . . . . . . . . . . . . . . . Machines Disabled . | . . . . . . . . . . . . . . . . Actions | -11 -10 -9 -8 -7 -7 -6 -5 -5 -5 -4 -4 -4 -3 -2 -1 --------- Run | Yrd Mat Mat Mat Fac DSF Fac Fac Upp Upp Fac Upp Upp Res Res Acc Total 10328 | 106 1186 1125 444 4 146 806 1807 476 185 616 400 35 614 143 2235 Wait 823 | 7 149 189 74 . 3 17 165 13 89 13 4 . 23 . 77 Move 8833 | 71 928 810 326 3 109 710 1578 461 96 563 385 35 568 129 2061 Hop 48 | . . . . . . 10 5 . . 5 . . . . 28 Pick Up 125 | 12 29 38 7 . 2 12 7 2 . 3 1 . 1 2 9 Fast Attach 79 | 5 2 9 . . 11 4 3 . . 3 2 . 7 5 28 Attach 32 | 2 1 5 2 1 . 5 4 . . 2 1 . 1 2 6 Detach 7 | . . . . . . 1 1 . . 1 . . . 1 3 Swap 62 | 1 12 17 8 . 3 10 8 . . 2 1 . . . . Drop 101 | 2 18 22 7 . 14 15 11 . . . 2 . 1 2 7 Fire 100 | 6 43 34 17 . . . . . . . . . . . . Melee 58 | . . . 1 . 4 7 20 . . 19 4 . . . 3 Ram 4 | . 4 . . . . . . . . . . . . . . Kick . | . . . . . . . . . . . . . . . . Crush 3 | . . 1 2 . . . . . . . . . . . . Escape Stasis 53 | . . . . . . 15 5 . . 5 . . 13 2 13 Rewire . | . . . . . . . . . . . . . . . . Trap . | . . . . . . . . . . . . . . . . Miscellaneous . | . . . . . . . . . . . . . . . . Route ------- -11/Scrapyard -10/Materials (discovered 4 exits: *Mat x3 / [*Min]) -9/Materials (discovered 2 exits: *Mat / *Min) -8/Materials -7/Factory -7/DSF -6/Factory -5/Factory (discovered 2 exits: *Upp x2) -5/Upper Caves -5/Upper Caves -4/Factory (discovered 5 exits: Res x4 / [*Upp]) -4/Upper Caves -4/Upper Caves -3/Research -2/Research -1/Access (discovered 2 exits: Com / Gar) History --------- Turn | Location | Event 10 | -11/Scrapyard | Discovered new exit (range 16) 113 | -11/Scrapyard | Entered Materials 315 | -10/Materials | Build established: Mutant 548 | -10/Materials | Discovered new exit (range 16) 782 | -10/Materials | Discovered new exit (range 11) 876 | -10/Materials | Discovered new exit (range 7) 978 | -10/Materials | Central database locked down 1534 | -10/Materials | Discovered new exit (range 13) 1550 | -10/Materials | Entered another Materials area 1550 | -9/Materials | Evolved 2 slots: Propulsion x2 1821 | -9/Materials | Lost 5 parts (4n1u) 1925 | -9/Materials | Core integrity fell below 50% 1940 | -9/Materials | Discovered new exit (range 15) 2254 | -9/Materials | Identified exit to Mines 2315 | -9/Materials | Repaired Mni. Grenade Launcher 2347 | -9/Materials | Repaired Mni. Grenade Launcher 2521 | -9/Materials | Build established: Scavenger-Mutant 2666 | -9/Materials | Central database locked down 3394 | -9/Materials | Build established: Mutant 3485 | -9/Materials | Discovered new exit (range 8) 3516 | -9/Materials | Entered another Materials area 3516 | -8/Materials | Evolved 2 slots: Utility x2 3822 | -8/Materials | Build established: Scavenger-Mutant 4204 | -8/Materials | Discovered new exit (range 16) 4452 | -8/Materials | Entered Factory 4452 | -7/Factory | Evolved 2 slots: Power x1, Propulsion x1 4458 | -7/Factory | Identified exit to DSF 4461 | -7/Factory | Entered DSF 4502 | -7/DSF | Additional patrols routed to DSF 4586 | -7/DSF | Lost 3 parts (2n1u) 4594 | -7/DSF | Discovered new exit (range 16) 4605 | -7/DSF | Entered Factory 4605 | -6/Factory | Evolved 2 slots: Propulsion x1, Utility x1 4725 | -6/Factory | Spotted B-75 Beast 4866 | -6/Factory | Discovered new exit (range 11) 4877 | -6/Factory | Entered another Factory area 4877 | -5/Factory | Evolved 2 slots: Propulsion x2 4901 | -5/Factory | Build established: Hacker-Sprinter 5004 | -5/Factory | Identified exit to Upper Caves 5239 | -5/Factory | Fabricated Cesium-ion Thruster? 5338 | -5/Factory | Fabricated Cesium-ion Thruster? 5386 | -5/Factory | Spotted B-75 Beast 5409 | -5/Factory | Entered Upper Caves 5480 | -5/Upper Caves | Identified exit to Upper Caves 5485 | -5/Upper Caves | Encountered a Warlord checkpoint 5507 | -5/Upper Caves | Entered another Upper Caves area 5610 | -5/Upper Caves | Discovered new exit (range 3) 5614 | -5/Upper Caves | Entered Factory 5614 | -4/Factory | Evolved 2 slots: Utility x2 5722 | -4/Factory | Identified exit to Research 5785 | -4/Factory | Lost 5 parts (3n2u) 5798 | -4/Factory | Found Hvy. Reflective Plating 5809 | -4/Factory | Discovered new exit (range 8) 5811 | -4/Factory | Entered Upper Caves 5879 | -4/Upper Caves | Attracted the attention of an 0b10 checkpoint 5883 | -4/Upper Caves | Learned Research stockpile data 5966 | -4/Upper Caves | Lost 13 parts (2p6n3u2w) 5967 | -4/Upper Caves | Discovered new exit (range 13) 5978 | -4/Upper Caves | Entered another Upper Caves area 5990 | -4/Upper Caves | Discovered exit to Research (range 5) 5993 | -4/Upper Caves | Entered Research 5993 | -3/Research | Evolved 2 slots: Power x1, Utility x1 6073 | -3/Research | Central database locked down 6160 | -3/Research | Build established: Hacker-Mutant 6199 | -3/Research | Core integrity fell below 50% 6235 | -3/Research | Lost 5 parts (1n4u) 6242 | -3/Research | Core integrity fell below 20% 6290 | -3/Research | Search patrols dispatched 6311 | -3/Research | Discovered new exit (range 15) 6324 | -3/Research | Entered another Research area 6324 | -2/Research | Evolved 2 slots: Power x1, Utility x1 6340 | -2/Research | Spotted B-90 Cyclops 6369 | -2/Research | Discovered new exit (range 5) 6375 | -2/Research | Entered Access 6375 | -1/Access | Evolved 2 slots: Power x1, Weapon x1 6428 | -1/Access | Spotted B-99 Colossus 6468 | -1/Access | Spotted B-99 Colossus 6502 | -1/Access | Spotted B-99 Colossus 6502 | -1/Access | Spotted B-99 Colossus 6534 | -1/Access | Lost 7 parts (1p2n4u) 6629 | -1/Access | Spotted B-99 Colossus 6654 | -1/Access | Build established: Hacker-Sprinter 6672 | -1/Access | Search patrols dispatched 6746 | -1/Access | Found Enh. Force Lance 6759 | -1/Access | Lost 3 parts (1n2u) 6808 | -1/Access | Identified exit to Command 6842 | -1/Access | Found Fusion Bomb Launcher 6875 | -1/Access | Search patrols dispatched 7094 | -1/Access | Found Enh. Force Lance 7096 | -1/Access | Found Prototype Device 7096 | -1/Access | Identified Exp. Thermal Shield 7098 | -1/Access | Core integrity fell below 50% 7127 | -1/Access | Core integrity fell below 20% 7140 | -1/Access | Identified exit to Garrison 7142 | -1/Access | Destroyed by P-80 Master with Gamma Rifle Last Messages --------------- 07111_ Penetrated by Slug. 07124_ Dropped Enh. Force Lance. 07124_ Slug penetrates Wall. 07125_ ALERT: Rogue bot located, Programmers report to Access Zone 9T. 07127_ Exp. Thermal Shield destroyed. 07133_ Acquired 1 matter. 07137_ System corrupted: Matter fused (-5). 07139_ P-80 Master resets K-01 Serf, system corruption cleaned. 07140_ Connecting with Garrison Access... >>Unlock Access door unlocked. 07140_ EXIT=UNLOCKED: GARRISON Blade Trap rendered useless by plates shifting to reveal entrance. 07140_ C-30 ARC bursts open, deploying its payload. 07140_ S-43 Plague unfolds itself. [Achievement: 10k Club] Map ----- +----------------------------------------------------+ | ??????????????# #??# #???????? | | ??????????????# #??# ????????? | | ??????????????# #??# ????????? | | ??????????????# #??# ????????? | | ?????????????## #### ^ ????????? | | ?????????????## #???????? | | ?????????????## #???????? | | ?????????????# #???????? | | ?????????????# #???????? | | ?????????????# #???????? | | ??????############## #???????? | | ??????? # #???????? | | ??????? ] # #####?????????? | | ??????"""" # #?????????????? | | ??????""""" # #?????????????? | | ?????"""""" # s #?????????????? | | # """"" # s #?????????????? | | # / # #?????????????? | | # #A #?????????????? | | ??????#######+###+## ####??????????? | | ????????????# #?# ####+##+#??? | | ????????????# #?# k ^ " #??? | | ????????????# ### """ #??? | | ????????????# p p >G #??? | | ????????????# k """ #??? | | ????????????# @" ![#??? | | ????????????# p p g [[#??? | | ????????????# p #??? | | ????????????# ##### #??? | | ????????????# #???####### #??? | | ????????#####/########??# g ### ???? | | ????????# #??# s #??? ???? | | ????????# ! #??# s #???? ????? | | ????????# #??#ggs #?????????? | | ???###### " #??# % s #?????????? | | ???# # """" #??# #?????????? | | ???# # """"" #??# #?????????? | | ???# + """"" #??# #?????????? | | ???# # """" [ #??# #?????????? | | ???## ## " #??# ??????????? | | ????# ## #??? ####+?????????????? | | ????# ## #??? ??????????????????? | | ????# ## #??????????????????????? | | ????# ##################???????????????????? | | ????# #?# #???????????????????? | | ????# #?# #???????????????????? | | ????# #?# """"""" #???????????????????? | | ????# #?# """"""" #???????????????????? | | ????# #?# #???????????????????? | | ????# #?# #???????????????????? | +----------------------------------------------------+ Best States ------------- Heat Dissipation 74 Coolant Potential 100 Energy Generation 53 Energy Capacity 480 Matter Stores 300 Matter Capacity 300 Sight Range 16 Robot Scan Range 16 Terrain Scan Range 24 Terrain Scan Density 610 Cloak Strength 3 Additional Mass Support 9 Armor Coverage 600 Resistance: TH 30 Phase Shifting 15 Evasion (%) 79 Melee Accuracy 6 Core Analysis 6 Recoil Reduction 4 Offensive Hacking 10 Defensive Hacking 32 Item Schematics ----------------- Cesium-ion Thruster | -5/Factory | Scanalyzed Hacking Suite | -5/Factory | Scanalyzed Robot Schematics ------------------ None Fabricated ------------ Cesium-ion Thruster | x2 | -5/Factory Cesium-ion Thruster | x2 | -5/Factory Alien Tech Used ----------------- None Achievements -------------- 10k Club Dangerous Findings Denied? Dodgeball, But With Guns Just What I Needed Leap Before You Look Part-time Excavator Respectable Loadout Slippery One Challenges ------------ None Game ------ Seed UtilityRecoilSuperbattery Manual? 0 Play Time 02:39:42 Cumulative 20.4 hours Start 2024.05.29 @ 18:18:52 End 2024.06.04 @ 03:57:55 Sessions 3 Manual Loads 0 Difficulty Rogue Special Mode None Game No. 22 Rogue 22 Adventurer 0 Explorer 0 Win Type - Total 0 Types 0/0/0/0/0/0/0/0/0 Lore% 20 Gallery% 22 Achievement% 20 Wizard Run 0 Options --------- Layout 1 ASCII 0 Keyboard 1 Movement Numpad Keybinds 0 Fullscreen 2 Font 24/Smallcaps Map View 50x35 Zoom Use 0% Tactical HUD 1 Map Filters NONE Filters NONE Steam 1 RUN: 3aeac224-cdf8-466a-9b43-bae7c1b4d3cb